[Event "Titled Tuesday Blitz February 14 Early 2023"]
[White "Nihal Sarin"]
[Black "Kuzmin, Roman"]
[WhiteFideId "25092340"]
[BlackFideId "44134932"]
[WhiteElo "2673"]
[BlackElo "2198"]
[Result "1-0"]
[Round "01"]
[TimeControl "180+2"]
[Date "2023.02.15"]
[WhiteClock "0:00:40"]
[BlackClock "0:00:12"]

1. d4 {[%clk 0:03:00]}  Nf6 {[%clk 0:02:59]} 2. c4 {[%clk 0:03:01]}  e6 {[%clk 0:03:00]} 3. Nf3 {[%clk 0:03:00]}  d5 {[%clk 0:03:00]} 4. Nc3 {[%clk 0:02:58]}  Nbd7 {[%clk 0:03:00]} 5. e3 {[%clk 0:02:58]}  c6 {[%clk 0:03:00]} 6. Be2 {[%clk 0:02:51]}  dxc4 {[%clk 0:02:57]} 7. a4 {[%clk 0:02:50]}  Bd6 {[%clk 0:02:55]} 8. O-O {[%clk 0:02:48]}  O-O {[%clk 0:02:54]} 9. Bxc4 {[%clk 0:02:48]}  e5 {[%clk 0:02:55]} 10. Qc2 {[%clk 0:02:39]}  Qc7 {[%clk 0:02:45]} 11. Rd1 {[%clk 0:02:34]}  exd4 {[%clk 0:02:32]} 12. exd4 {[%clk 0:02:34]}  Nb6 {[%clk 0:02:29]} 13. Be2 {[%clk 0:02:25]}  h6 {[%clk 0:02:23]} 14. h3 {[%clk 0:02:17]}  Nbd5 {[%clk 0:02:23]} 15. Bd2 {[%clk 0:02:04]}  a5 {[%clk 0:02:08]} 16. Nxd5 {[%clk 0:01:58]}  Nxd5 {[%clk 0:02:06]} 17. Re1 {[%clk 0:01:55]}  Be6 {[%clk 0:01:54]} 18. Bc4 {[%clk 0:01:55]}  Rfe8 {[%clk 0:01:50]} 19. Re2 {[%clk 0:01:54]}  b5 {[%clk 0:01:41]} 20. Bd3 {[%clk 0:01:43]}  Nb4 {[%clk 0:01:35]} 21. Bxb4 {[%clk 0:01:41]}  axb4 {[%clk 0:01:36]} 22. b3 {[%clk 0:01:13]}  bxa4 {[%clk 0:01:34]} 23. Rxa4 {[%clk 0:00:54]}  Rxa4 {[%clk 0:01:34]} 24. bxa4 {[%clk 0:00:54]}  Rb8 {[%clk 0:01:13]} 25. Rxe6 {[%clk 0:00:54]}  fxe6 {[%clk 0:01:12]} 26. Bc4 {[%clk 0:00:55]}  c5 {[%clk 0:00:45]} 27. Bxe6+ {[%clk 0:00:47]}  Kh8 {[%clk 0:00:29]} 28. Ng5 {[%clk 0:00:45]}  Bh2+ {[%clk 0:00:15]} 29. Kh1 {[%clk 0:00:42]}  Qf4 {[%clk 0:00:12]} 30. Qh7# {[%clk 0:00:40]} 1-0


[Site "https://www.chess.com"]

[Event "Titled Tuesday Blitz February 14 Early 2023"]
[White "Novikov, Evgenij"]
[Black "Andreikin, Dmitry"]
[WhiteFideId "4125380"]
[BlackFideId "4158814"]
[WhiteElo "2276"]
[BlackElo "2729"]
[Result "0-1"]
[Round "01"]
[TimeControl "180+2"]
[Date "2023.02.15"]
[WhiteClock "0:00:02"]
[BlackClock "0:01:39"]

1. d4 {[%clk 0:03:00]}  Nf6 {[%clk 0:02:58]} 2. c4 {[%clk 0:02:56]}  e6 {[%clk 0:02:58]} 3. Nc3 {[%clk 0:02:54]}  Bb4 {[%clk 0:02:57]} 4. e3 {[%clk 0:02:54]}  O-O {[%clk 0:02:56]} 5. Ne2 {[%clk 0:02:52]}  c6 {[%clk 0:02:55]} 6. a3 {[%clk 0:02:52]}  Ba5 {[%clk 0:02:54]} 7. Bd2 {[%clk 0:02:43]}  d5 {[%clk 0:02:53]} 8. Ng3 {[%clk 0:02:40]}  Nbd7 {[%clk 0:02:52]} 9. Be2 {[%clk 0:02:31]}  dxc4 {[%clk 0:02:52]} 10. Bxc4 {[%clk 0:02:29]}  e5 {[%clk 0:02:52]} 11. b4 {[%clk 0:02:03]}  Bc7 {[%clk 0:02:51]} 12. Be2 {[%clk 0:01:33]}  exd4 {[%clk 0:02:45]} 13. exd4 {[%clk 0:01:34]}  Nb6 {[%clk 0:02:45]} 14. Be3 {[%clk 0:01:31]}  Nbd5 {[%clk 0:02:41]} 15. Nxd5 {[%clk 0:01:22]}  Nxd5 {[%clk 0:02:42]} 16. O-O {[%clk 0:01:17]}  Qh4 {[%clk 0:02:35]} 17. Qd2 {[%clk 0:01:08]}  h6 {[%clk 0:02:34]} 18. Bf3 {[%clk 0:01:00]}  Be6 {[%clk 0:02:30]} 19. Rfe1 {[%clk 0:00:55]}  Rad8 {[%clk 0:02:29]} 20. Nf1 {[%clk 0:00:54]}  Bg4 {[%clk 0:02:23]} 21. Bxg4 {[%clk 0:00:43]}  Qxg4 {[%clk 0:02:23]} 22. Qe2 {[%clk 0:00:27]}  Qf5 {[%clk 0:02:15]} 23. Ng3 {[%clk 0:00:24]}  Bxg3 {[%clk 0:02:07]} 24. hxg3 {[%clk 0:00:25]}  Rfe8 {[%clk 0:02:07]} 25. Qf3 {[%clk 0:00:25]}  Qc2 {[%clk 0:02:04]} 26. Rac1 {[%clk 0:00:21]}  Qb2 {[%clk 0:02:00]} 27. Bf4 {[%clk 0:00:16]}  Qxd4 {[%clk 0:01:56]} 28. Rxe8+ {[%clk 0:00:14]}  Rxe8 {[%clk 0:01:56]} 29. Rd1 {[%clk 0:00:15]}  Qe4 {[%clk 0:01:50]} 30. Qxe4 {[%clk 0:00:14]}  Rxe4 {[%clk 0:01:51]} 31. Bb8 {[%clk 0:00:14]}  a6 {[%clk 0:01:50]} 32. Kf1 {[%clk 0:00:14]}  f6 {[%clk 0:01:48]} 33. Ba7 {[%clk 0:00:13]}  Kf7 {[%clk 0:01:47]} 34. f3 {[%clk 0:00:13]}  Rc4 {[%clk 0:01:46]} 35. Rd3 {[%clk 0:00:11]}  Rc1+ {[%clk 0:01:43]} 36. Ke2 {[%clk 0:00:10]}  Rc2+ {[%clk 0:01:44]} 37. Rd2 {[%clk 0:00:10]}  Rc1 {[%clk 0:01:43]} 38. g4 {[%clk 0:00:08]}  Ra1 {[%clk 0:01:43]} 39. Kf2 {[%clk 0:00:04]}  Rxa3 {[%clk 0:01:42]} 40. Bc5 {[%clk 0:00:04]}  Rc3 {[%clk 0:01:42]} 41. g3 {[%clk 0:00:03]}  Rc4 {[%clk 0:01:41]} 42. Rb2 {[%clk 0:00:03]}  a5 {[%clk 0:01:41]} 43. Be3 {[%clk 0:00:02]}  axb4 {[%clk 0:01:39]} 0-1


[Site "https://www.chess.com"]

[Event "Titled Tuesday Blitz February 14 Early 2023"]
[White "Jimenez Almeida, Luis David"]
[Black "Makhnev, Denis"]
[WhiteFideId "22242244"]
[BlackFideId "13707647"]
[WhiteElo "2242"]
[BlackElo "2483"]
[Result "0-1"]
[Round "01"]
[TimeControl "180+2"]
[Date "2023.02.15"]
[WhiteClock "0:01:14"]
[BlackClock "0:01:04"]

1. e4 {[%clk 0:02:56]}  e5 {[%clk 0:02:59]} 2. Nf3 {[%clk 0:02:55]}  Nc6 {[%clk 0:02:58]} 3. Bb5 {[%clk 0:02:55]}  a6 {[%clk 0:02:56]} 4. Ba4 {[%clk 0:02:55]}  d6 {[%clk 0:02:57]} 5. d4 {[%clk 0:02:54]}  b5 {[%clk 0:02:41]} 6. Bb3 {[%clk 0:02:51]}  Nxd4 {[%clk 0:02:42]} 7. Nxd4 {[%clk 0:02:49]}  exd4 {[%clk 0:02:41]} 8. c3 {[%clk 0:02:30]}  d3 {[%clk 0:01:41]} 9. Qxd3 {[%clk 0:02:27]}  Nf6 {[%clk 0:01:41]} 10. O-O {[%clk 0:02:26]}  Be7 {[%clk 0:01:36]} 11. Re1 {[%clk 0:02:25]}  O-O {[%clk 0:01:35]} 12. a4 {[%clk 0:02:25]}  Bb7 {[%clk 0:01:32]} 13. Bf4 {[%clk 0:02:15]}  Nd7 {[%clk 0:01:29]} 14. Bc2 {[%clk 0:01:39]}  Ne5 {[%clk 0:01:19]} 15. Bxe5 {[%clk 0:01:36]}  dxe5 {[%clk 0:01:20]} 16. axb5 {[%clk 0:01:33]}  Qxd3 {[%clk 0:01:03]} 17. Bxd3 {[%clk 0:01:34]}  axb5 {[%clk 0:01:04]} 18. Rxa8 {[%clk 0:01:33]}  Rxa8 {[%clk 0:01:05]} 19. Bxb5 {[%clk 0:01:30]}  Ra2 {[%clk 0:01:05]} 20. Re2 {[%clk 0:01:15]}  Ra1 {[%clk 0:01:04]} 21. Bd3 {[%clk 0:01:14]}  Ba6 {[%clk 0:01:04]} 0-1


[Site "https://www.chess.com"]

[Event "Titled Tuesday Blitz February 14 Early 2023"]
[White "Narayanan.S.L"]
[Black "dodoucb"]
[WhiteFideId "5058422"]
[WhiteElo "2660"]
[BlackElo "2485"]
[Result "1-0"]
[Round "01"]
[TimeControl "180+2"]
[Date "2023.02.15"]
[WhiteClock "0:02:14"]
[BlackClock "0:00:11"]

1. e4 {[%clk 0:02:57]}  c6 {[%clk 0:02:59]} 2. d4 {[%clk 0:02:52]}  d5 {[%clk 0:02:57]} 3. f3 {[%clk 0:02:53]}  dxe4 {[%clk 0:02:55]} 4. fxe4 {[%clk 0:02:52]}  e5 {[%clk 0:02:56]} 5. Nf3 {[%clk 0:02:52]}  Bg4 {[%clk 0:02:56]} 6. Bc4 {[%clk 0:02:51]}  Nd7 {[%clk 0:02:56]} 7. O-O {[%clk 0:02:50]}  Bd6 {[%clk 0:02:44]} 8. c3 {[%clk 0:02:49]}  Ngf6 {[%clk 0:02:34]} 9. Bg5 {[%clk 0:02:48]}  O-O {[%clk 0:02:31]} 10. Nbd2 {[%clk 0:02:48]}  Qc7 {[%clk 0:01:56]} 11. Qe1 {[%clk 0:02:44]}  h6 {[%clk 0:01:40]} 12. Bh4 {[%clk 0:02:43]}  Rae8 {[%clk 0:01:35]} 13. h3 {[%clk 0:02:40]}  Be6 {[%clk 0:01:31]} 14. Bd3 {[%clk 0:02:33]}  Nh5 {[%clk 0:01:25]} 15. Kh1 {[%clk 0:02:30]}  exd4 {[%clk 0:01:12]} 16. cxd4 {[%clk 0:02:30]}  Bg3 {[%clk 0:01:11]} 17. Bxg3 {[%clk 0:02:30]}  Nxg3+ {[%clk 0:01:10]} 18. Kg1 {[%clk 0:02:30]}  Nxf1 {[%clk 0:01:10]} 19. Nxf1 {[%clk 0:02:31]}  Qf4 {[%clk 0:01:05]} 20. Ng3 {[%clk 0:02:31]}  Bxh3 {[%clk 0:00:50]} 21. Nh2 {[%clk 0:02:22]}  Bg4 {[%clk 0:00:40]} 22. Nxg4 {[%clk 0:02:20]}  Qxg4 {[%clk 0:00:40]} 23. Qf2 {[%clk 0:02:21]}  Nf6 {[%clk 0:00:32]} 24. Rf1 {[%clk 0:02:21]}  Nh5 {[%clk 0:00:31]} 25. Nf5 {[%clk 0:02:21]}  Re6 {[%clk 0:00:25]} 26. e5 {[%clk 0:02:20]}  b5 {[%clk 0:00:19]} 27. Be2 {[%clk 0:02:20]}  Qg5 {[%clk 0:00:19]} 28. g4 {[%clk 0:02:17]}  g6 {[%clk 0:00:16]} 29. Nd6 {[%clk 0:02:15]}  f6 {[%clk 0:00:11]} 30. Ne4 {[%clk 0:02:14]} 1-0


[Site "https://www.chess.com"]

[Event "Titled Tuesday Blitz February 14 Early 2023"]
[White "Aarav Dengla"]
[Black "Lazavik, Denis"]
[WhiteFideId "45059756"]
[BlackFideId "13515110"]
[WhiteElo "2343"]
[BlackElo "2544"]
[Result "0-1"]
[Round "01"]
[TimeControl "180+2"]
[Date "2023.02.15"]
[WhiteClock "0:00:11"]
[BlackClock "0:00:05"]

1. e4 {[%clk 0:02:58]}  c5 {[%clk 0:02:59]} 2. Nf3 {[%clk 0:02:58]}  e6 {[%clk 0:03:00]} 3. d4 {[%clk 0:02:57]}  cxd4 {[%clk 0:03:01]} 4. Nxd4 {[%clk 0:02:57]}  Nc6 {[%clk 0:03:02]} 5. Nc3 {[%clk 0:02:53]}  Qc7 {[%clk 0:03:02]} 6. Be3 {[%clk 0:02:51]}  a6 {[%clk 0:03:02]} 7. g4 {[%clk 0:02:50]}  b5 {[%clk 0:02:58]} 8. Nxc6 {[%clk 0:02:49]}  Qxc6 {[%clk 0:02:59]} 9. Qd2 {[%clk 0:02:50]}  b4 {[%clk 0:02:59]} 10. Ne2 {[%clk 0:02:50]}  Qxe4 {[%clk 0:02:59]} 11. Rg1 {[%clk 0:02:50]}  Qc6 {[%clk 0:02:58]} 12. Ng3 {[%clk 0:02:45]}  d5 {[%clk 0:02:35]} 13. h4 {[%clk 0:02:38]}  Bb7 {[%clk 0:02:30]} 14. g5 {[%clk 0:02:34]}  Bc5 {[%clk 0:02:21]} 15. Bd4 {[%clk 0:02:23]}  Ne7 {[%clk 0:01:55]} 16. Nh5 {[%clk 0:01:40]}  O-O-O {[%clk 0:01:45]} 17. Bxg7 {[%clk 0:01:37]}  Rhg8 {[%clk 0:01:39]} 18. Bf6 {[%clk 0:01:34]}  Qb6 {[%clk 0:01:32]} 19. Bd3 {[%clk 0:01:29]}  Rd7 {[%clk 0:00:39]} 20. Bxh7 {[%clk 0:01:16]}  Re8 {[%clk 0:00:38]} 21. Ng7 {[%clk 0:01:10]}  Rf8 {[%clk 0:00:35]} 22. h5 {[%clk 0:01:06]}  d4 {[%clk 0:00:29]} 23. Bd3 {[%clk 0:01:04]}  Nd5 {[%clk 0:00:24]} 24. h6 {[%clk 0:00:54]}  Nxf6 {[%clk 0:00:21]} 25. gxf6 {[%clk 0:00:55]}  Kb8 {[%clk 0:00:19]} 26. h7 {[%clk 0:00:48]}  e5 {[%clk 0:00:19]} 27. Nh5 {[%clk 0:00:43]}  Rdd8 {[%clk 0:00:17]} 28. O-O-O {[%clk 0:00:38]}  Ka7 {[%clk 0:00:13]} 29. Qh6 {[%clk 0:00:33]}  e4 {[%clk 0:00:11]} 30. Bc4 {[%clk 0:00:27]}  d3 {[%clk 0:00:11]} 31. Qxf8 {[%clk 0:00:17]}  Rxf8 {[%clk 0:00:08]} 32. Rg8 {[%clk 0:00:18]}  Qd8 {[%clk 0:00:07]} 33. Rdg1 {[%clk 0:00:18]}  e3 {[%clk 0:00:06]} 34. Bxf7 {[%clk 0:00:16]}  dxc2 {[%clk 0:00:06]} 35. Rxf8 {[%clk 0:00:11]}  Qd2# {[%clk 0:00:05]} 0-1


[Site "https://www.chess.com"]

[Event "Titled Tuesday Blitz February 14 Early 2023"]
[White "Tsydypov, Zhamsaran"]
[Black "Shashikant, Kutwal"]
[WhiteFideId "4108566"]
[BlackFideId "5006520"]
[WhiteElo "2518"]
[BlackElo "2182"]
[Result "1-0"]
[Round "01"]
[TimeControl "180+2"]
[Date "2023.02.15"]
[WhiteClock "0:00:43"]
[BlackClock "0:00:03"]

1. e4 {[%clk 0:02:58]}  e5 {[%clk 0:02:59]} 2. Nf3 {[%clk 0:02:57]}  Nc6 {[%clk 0:02:59]} 3. Bc4 {[%clk 0:02:54]}  Bc5 {[%clk 0:02:58]} 4. d3 {[%clk 0:02:54]}  Nf6 {[%clk 0:02:58]} 5. Nbd2 {[%clk 0:02:55]}  a6 {[%clk 0:02:57]} 6. h3 {[%clk 0:02:51]}  Ba7 {[%clk 0:02:56]} 7. Nf1 {[%clk 0:02:51]}  d6 {[%clk 0:02:52]} 8. Bg5 {[%clk 0:02:46]}  h6 {[%clk 0:02:49]} 9. Bh4 {[%clk 0:02:46]}  Be6 {[%clk 0:02:36]} 10. Bb3 {[%clk 0:02:39]}  Qe7 {[%clk 0:02:24]} 11. Ne3 {[%clk 0:02:39]}  g5 {[%clk 0:02:19]} 12. Bg3 {[%clk 0:02:37]}  Nh5 {[%clk 0:02:07]} 13. Bh2 {[%clk 0:02:29]}  Nf4 {[%clk 0:02:00]} 14. Bxf4 {[%clk 0:01:58]}  gxf4 {[%clk 0:02:01]} 15. Nd5 {[%clk 0:01:58]}  Bxd5 {[%clk 0:02:00]} 16. Bxd5 {[%clk 0:01:57]}  Nd8 {[%clk 0:01:58]} 17. c3 {[%clk 0:01:57]}  c6 {[%clk 0:01:56]} 18. Bb3 {[%clk 0:01:57]}  Ne6 {[%clk 0:01:53]} 19. Qe2 {[%clk 0:01:44]}  O-O-O {[%clk 0:01:51]} 20. O-O-O {[%clk 0:01:43]}  Rhg8 {[%clk 0:01:51]} 21. Rhg1 {[%clk 0:01:40]}  Kc7 {[%clk 0:01:44]} 22. d4 {[%clk 0:01:30]}  Ng5 {[%clk 0:01:44]} 23. Nxg5 {[%clk 0:01:21]}  Qxg5 {[%clk 0:01:40]} 24. Qf3 {[%clk 0:01:19]}  Qf6 {[%clk 0:01:33]} 25. d5 {[%clk 0:01:12]}  c5 {[%clk 0:01:19]} 26. a4 {[%clk 0:01:11]}  Bb6 {[%clk 0:01:14]} 27. Bc4 {[%clk 0:01:11]}  Kb8 {[%clk 0:01:13]} 28. Kc2 {[%clk 0:01:06]}  Rg7 {[%clk 0:01:12]} 29. Rb1 {[%clk 0:01:00]}  Qh4 {[%clk 0:00:55]} 30. Kd3 {[%clk 0:00:59]}  Ka7 {[%clk 0:00:50]} 31. Ra1 {[%clk 0:00:56]}  Ba5 {[%clk 0:00:37]} 32. Kc2 {[%clk 0:00:53]}  Rdg8 {[%clk 0:00:35]} 33. Bf1 {[%clk 0:00:51]}  Qd8 {[%clk 0:00:24]} 34. g4 {[%clk 0:00:48]}  h5 {[%clk 0:00:21]} 35. Be2 {[%clk 0:00:48]}  hxg4 {[%clk 0:00:21]} 36. hxg4 {[%clk 0:00:49]}  f6 {[%clk 0:00:15]} 37. Rh1 {[%clk 0:00:48]}  Rh8 {[%clk 0:00:15]} 38. Rh5 {[%clk 0:00:49]}  Rxh5 {[%clk 0:00:12]} 39. gxh5 {[%clk 0:00:49]}  Qh8 {[%clk 0:00:12]} 40. Rh1 {[%clk 0:00:50]}  Qh6 {[%clk 0:00:12]} 41. Qh3 {[%clk 0:00:50]}  Bb6 {[%clk 0:00:07]} 42. Bf3 {[%clk 0:00:50]}  c4 {[%clk 0:00:07]} 43. Rh2 {[%clk 0:00:50]}  Bc5 {[%clk 0:00:06]} 44. Qf5 {[%clk 0:00:45]}  Rg5 {[%clk 0:00:05]} 45. Qe6 {[%clk 0:00:45]}  Rg1 {[%clk 0:00:04]} 46. Qf7 {[%clk 0:00:44]}  Rf1 {[%clk 0:00:04]} 47. Qg6 {[%clk 0:00:43]}  Qxg6 {[%clk 0:00:02]} 48. hxg6 {[%clk 0:00:44]}  Rg1 {[%clk 0:00:03]} 49. Rg2 {[%clk 0:00:43]} 1-0


[Site "https://www.chess.com"]

[Event "Titled Tuesday Blitz February 14 Early 2023"]
[White "AyMitecK"]
[Black "Terry, Renato"]
[BlackFideId "3803457"]
[WhiteElo "2484"]
[BlackElo "2520"]
[Result "0-1"]
[Round "01"]
[TimeControl "180+2"]
[Date "2023.02.15"]
[WhiteClock "0:00:13"]
[BlackClock "0:00:17"]

1. e4 {[%clk 0:02:59]}  e6 {[%clk 0:02:59]} 2. d4 {[%clk 0:02:57]}  d5 {[%clk 0:03:00]} 3. Nd2 {[%clk 0:02:57]}  Be7 {[%clk 0:03:00]} 4. Ngf3 {[%clk 0:02:56]}  Nf6 {[%clk 0:02:59]} 5. e5 {[%clk 0:02:55]}  Nfd7 {[%clk 0:03:00]} 6. Bd3 {[%clk 0:02:56]}  c5 {[%clk 0:03:00]} 7. c3 {[%clk 0:02:56]}  Nc6 {[%clk 0:03:01]} 8. O-O {[%clk 0:02:55]}  g5 {[%clk 0:03:01]} 9. dxc5 {[%clk 0:02:53]}  Ndxe5 {[%clk 0:03:01]} 10. Nxe5 {[%clk 0:02:53]}  Nxe5 {[%clk 0:03:02]} 11. Bb5+ {[%clk 0:02:53]}  Bd7 {[%clk 0:03:01]} 12. Bxd7+ {[%clk 0:02:52]}  Qxd7 {[%clk 0:02:58]} 13. Re1 {[%clk 0:02:52]}  Nd3 {[%clk 0:02:55]} 14. Re3 {[%clk 0:02:49]}  Nxc5 {[%clk 0:02:41]} 15. Nf3 {[%clk 0:02:48]}  f6 {[%clk 0:02:37]} 16. Nd4 {[%clk 0:02:45]}  O-O-O {[%clk 0:02:31]} 17. b4 {[%clk 0:02:43]}  Ne4 {[%clk 0:02:23]} 18. f3 {[%clk 0:02:42]}  e5 {[%clk 0:02:24]} 19. fxe4 {[%clk 0:02:35]}  exd4 {[%clk 0:02:24]} 20. cxd4 {[%clk 0:02:36]}  dxe4 {[%clk 0:02:14]} 21. Rxe4 {[%clk 0:02:36]}  f5 {[%clk 0:02:04]} 22. Re5 {[%clk 0:02:19]}  Bf6 {[%clk 0:02:04]} 23. Rc5+ {[%clk 0:02:12]}  Kb8 {[%clk 0:02:05]} 24. Bb2 {[%clk 0:02:12]}  Be7 {[%clk 0:01:42]} 25. Re5 {[%clk 0:01:59]}  Bd6 {[%clk 0:01:42]} 26. Re3 {[%clk 0:01:56]}  Rhe8 {[%clk 0:01:35]} 27. Rxe8 {[%clk 0:01:54]}  Rxe8 {[%clk 0:01:35]} 28. Qd2 {[%clk 0:01:52]}  Bf4 {[%clk 0:01:33]} 29. Qc2 {[%clk 0:01:45]}  g4 {[%clk 0:01:19]} 30. Rf1 {[%clk 0:01:41]}  Be3+ {[%clk 0:01:20]} 31. Kh1 {[%clk 0:01:41]}  f4 {[%clk 0:01:20]} 32. Qd3 {[%clk 0:01:31]}  g3 {[%clk 0:01:10]} 33. d5 {[%clk 0:01:25]}  Qd6 {[%clk 0:01:03]} 34. Bd4 {[%clk 0:01:19]}  a6 {[%clk 0:00:33]} 35. Bc5 {[%clk 0:01:10]}  Bxc5 {[%clk 0:00:28]} 36. bxc5 {[%clk 0:01:11]}  Qxc5 {[%clk 0:00:29]} 37. Qxh7 {[%clk 0:01:05]}  Qf2 {[%clk 0:00:19]} 38. Qb1 {[%clk 0:00:46]}  f3 {[%clk 0:00:17]} 39. Rxf2 {[%clk 0:00:18]}  gxf2 {[%clk 0:00:18]} 40. gxf3 {[%clk 0:00:13]}  Re1+ {[%clk 0:00:17]} 0-1


[Site "https://www.chess.com"]

[Event "Titled Tuesday Blitz February 14 Early 2023"]
[White "Shimanov, Aleksandr"]
[Black "Eynullayev, Atilla"]
[WhiteFideId "4198603"]
[BlackFideId "13413570"]
[WhiteElo "2581"]
[BlackElo "2281"]
[Result "1-0"]
[Round "01"]
[TimeControl "180+2"]
[Date "2023.02.15"]
[WhiteClock "0:00:13"]
[BlackClock "0:00:16"]

1. e4 {[%clk 0:02:55]}  c5 {[%clk 0:02:59]} 2. Nc3 {[%clk 0:02:51]}  d6 {[%clk 0:02:57]} 3. Bb5+ {[%clk 0:02:50]}  Nd7 {[%clk 0:02:50]} 4. a4 {[%clk 0:02:49]}  a6 {[%clk 0:02:50]} 5. Bc4 {[%clk 0:02:49]}  Ngf6 {[%clk 0:02:50]} 6. d3 {[%clk 0:02:47]}  e6 {[%clk 0:02:50]} 7. f4 {[%clk 0:02:47]}  Be7 {[%clk 0:02:50]} 8. Nf3 {[%clk 0:02:47]}  O-O {[%clk 0:02:51]} 9. O-O {[%clk 0:02:48]}  b6 {[%clk 0:02:36]} 10. Qe1 {[%clk 0:02:40]}  Bb7 {[%clk 0:02:36]} 11. Bb3 {[%clk 0:02:37]}  Qc7 {[%clk 0:01:51]} 12. f5 {[%clk 0:02:31]}  exf5 {[%clk 0:01:45]} 13. Nh4 {[%clk 0:02:31]}  fxe4 {[%clk 0:01:04]} 14. Nf5 {[%clk 0:02:31]}  Ne5 {[%clk 0:01:02]} 15. Bg5 {[%clk 0:01:53]}  c4 {[%clk 0:00:50]} 16. Bxc4 {[%clk 0:01:27]}  Nxc4 {[%clk 0:00:49]} 17. dxc4 {[%clk 0:01:26]}  Bd8 {[%clk 0:00:49]} 18. Qg3 {[%clk 0:01:23]}  Nh5 {[%clk 0:00:31]} 19. Qg4 {[%clk 0:01:23]}  Bxg5 {[%clk 0:00:24]} 20. Qxg5 {[%clk 0:01:23]}  Qc5+ {[%clk 0:00:24]} 21. Kh1 {[%clk 0:01:20]}  g6 {[%clk 0:00:24]} 22. Nd5 {[%clk 0:01:07]}  Bxd5 {[%clk 0:00:22]} 23. cxd5 {[%clk 0:00:55]}  f6 {[%clk 0:00:20]} 24. Qg4 {[%clk 0:00:52]}  Rae8 {[%clk 0:00:18]} 25. c3 {[%clk 0:00:45]}  Qxd5 {[%clk 0:00:18]} 26. Rad1 {[%clk 0:00:44]}  Qe5 {[%clk 0:00:17]} 27. Rxd6 {[%clk 0:00:41]}  Kh8 {[%clk 0:00:18]} 28. Rd7 {[%clk 0:00:39]}  e3 {[%clk 0:00:15]} 29. Nd4 {[%clk 0:00:32]}  f5 {[%clk 0:00:13]} 30. Qg5 {[%clk 0:00:31]}  e2 {[%clk 0:00:13]} 31. Re1 {[%clk 0:00:31]}  Qf6 {[%clk 0:00:09]} 32. Qh6 {[%clk 0:00:28]}  Rf7 {[%clk 0:00:07]} 33. Rxf7 {[%clk 0:00:23]}  Qxf7 {[%clk 0:00:08]} 34. Rxe2 {[%clk 0:00:23]}  Rxe2 {[%clk 0:00:08]} 35. Nxe2 {[%clk 0:00:24]}  Nf6 {[%clk 0:00:09]} 36. Qe3 {[%clk 0:00:23]}  Ne4 {[%clk 0:00:09]} 37. Qxb6 {[%clk 0:00:22]}  Qa2 {[%clk 0:00:10]} 38. h3 {[%clk 0:00:18]}  Qa1+ {[%clk 0:00:09]} 39. Kh2 {[%clk 0:00:18]}  Qxa4 {[%clk 0:00:08]} 40. Nd4 {[%clk 0:00:12]}  Qd7 {[%clk 0:00:04]} 41. Qb8+ {[%clk 0:00:07]}  Kg7 {[%clk 0:00:04]} 42. Qe5+ {[%clk 0:00:08]}  Kh6 {[%clk 0:00:05]} 43. Ne6 {[%clk 0:00:08]}  Ng5 {[%clk 0:00:02]} 44. Nc5 {[%clk 0:00:04]}  Qd2 {[%clk 0:00:01]} 45. Qg3 {[%clk 0:00:03]}  Qd5 {[%clk 0:00:01]} 46. Qh4+ {[%clk 0:00:03]}  Kg7 {[%clk 0:00:01]} 47. Qb4 {[%clk 0:00:02]}  Qd6+ {[%clk 0:00:02]} 48. Kg1 {[%clk 0:00:02]}  Ne4 {[%clk 0:00:02]} 49. Nxe4 {[%clk 0:00:02]}  Qd1+ {[%clk 0:00:02]} 50. Kh2 {[%clk 0:00:02]}  fxe4 {[%clk 0:00:03]} 51. Qxe4 {[%clk 0:00:02]}  Qd6+ {[%clk 0:00:04]} 52. Kg1 {[%clk 0:00:02]}  Qd1+ {[%clk 0:00:04]} 53. Kf2 {[%clk 0:00:03]}  Qd2+ {[%clk 0:00:05]} 54. Qe2 {[%clk 0:00:03]}  Qf4+ {[%clk 0:00:05]} 55. Kg1 {[%clk 0:00:04]}  Qc1+ {[%clk 0:00:05]} 56. Kh2 {[%clk 0:00:04]}  Qf4+ {[%clk 0:00:06]} 57. g3 {[%clk 0:00:05]}  Qf5 {[%clk 0:00:05]} 58. Qd2 {[%clk 0:00:05]}  h5 {[%clk 0:00:05]} 59. Kg2 {[%clk 0:00:04]}  a5 {[%clk 0:00:05]} 60. Qd4+ {[%clk 0:00:04]}  Kh7 {[%clk 0:00:05]} 61. Qa7+ {[%clk 0:00:04]}  Kh6 {[%clk 0:00:05]} 62. Qe3+ {[%clk 0:00:04]}  Kh7 {[%clk 0:00:05]} 63. Qf3 {[%clk 0:00:04]}  Qc2+ {[%clk 0:00:06]} 64. Qf2 {[%clk 0:00:05]}  Qe4+ {[%clk 0:00:06]} 65. Kh2 {[%clk 0:00:06]}  a4 {[%clk 0:00:06]} 66. h4 {[%clk 0:00:04]}  Kg7 {[%clk 0:00:05]} 67. Qd4+ {[%clk 0:00:03]}  Qxd4 {[%clk 0:00:06]} 68. cxd4 {[%clk 0:00:04]}  Kf6 {[%clk 0:00:06]} 69. Kg2 {[%clk 0:00:04]}  Ke6 {[%clk 0:00:05]} 70. Kf3 {[%clk 0:00:05]}  Kd5 {[%clk 0:00:06]} 71. Ke3 {[%clk 0:00:05]}  Kc4 {[%clk 0:00:06]} 72. Ke4 {[%clk 0:00:05]}  Kb3 {[%clk 0:00:07]} 73. d5 {[%clk 0:00:06]}  Kxb2 {[%clk 0:00:08]} 74. d6 {[%clk 0:00:07]}  a3 {[%clk 0:00:09]} 75. d7 {[%clk 0:00:07]}  a2 {[%clk 0:00:10]} 76. d8=Q {[%clk 0:00:08]}  a1=Q {[%clk 0:00:11]} 77. Qd4+ {[%clk 0:00:09]}  Kb1 {[%clk 0:00:11]} 78. Qxa1+ {[%clk 0:00:09]}  Kxa1 {[%clk 0:00:12]} 79. Ke5 {[%clk 0:00:10]}  Kb2 {[%clk 0:00:13]} 80. Kf6 {[%clk 0:00:11]}  Kc3 {[%clk 0:00:14]} 81. Kxg6 {[%clk 0:00:11]}  Kd4 {[%clk 0:00:15]} 82. Kxh5 {[%clk 0:00:12]}  Ke4 {[%clk 0:00:16]} 83. Kg6 {[%clk 0:00:13]} 1-0


[Site "https://www.chess.com"]

[Event "Titled Tuesday Blitz February 14 Early 2023"]
[White "Nguyen Hong Nhung"]
[Black "Kollars, Dmitrij"]
[WhiteFideId "12412201"]
[BlackFideId "12909572"]
[WhiteElo "2003"]
[BlackElo "2607"]
[Result "0-1"]
[Round "01"]
[TimeControl "180+2"]
[Date "2023.02.15"]
[WhiteClock "0:00:07"]
[BlackClock "0:02:18"]

1. e4 {[%clk 0:00:15]}  c5 {[%clk 0:02:53]} 2. Nf3 {[%clk 0:00:15]}  d6 {[%clk 0:02:54]} 3. d4 {[%clk 0:00:16]}  cxd4 {[%clk 0:02:55]} 4. Nxd4 {[%clk 0:00:17]}  Nf6 {[%clk 0:02:55]} 5. Nc3 {[%clk 0:00:17]}  Nc6 {[%clk 0:02:55]} 6. Bg5 {[%clk 0:00:18]}  e6 {[%clk 0:02:55]} 7. Nxc6 {[%clk 0:00:18]}  bxc6 {[%clk 0:02:55]} 8. Qd3 {[%clk 0:00:19]}  Qa5 {[%clk 0:02:54]} 9. Bd2 {[%clk 0:00:18]}  Qb6 {[%clk 0:02:50]} 10. O-O-O {[%clk 0:00:18]}  Ng4 {[%clk 0:02:50]} 11. Be1 {[%clk 0:00:17]}  Nxf2 {[%clk 0:02:48]} 12. Bxf2 {[%clk 0:00:17]}  Qxf2 {[%clk 0:02:49]} 13. Qc4 {[%clk 0:00:17]}  Qb6 {[%clk 0:02:44]} 14. Be2 {[%clk 0:00:17]}  Rb8 {[%clk 0:02:44]} 15. b3 {[%clk 0:00:17]}  Be7 {[%clk 0:02:44]} 16. Bf3 {[%clk 0:00:16]}  O-O {[%clk 0:02:43]} 17. h4 {[%clk 0:00:16]}  d5 {[%clk 0:02:44]} 18. exd5 {[%clk 0:00:15]}  cxd5 {[%clk 0:02:43]} 19. Qd3 {[%clk 0:00:16]}  Bf6 {[%clk 0:02:42]} 20. Kb1 {[%clk 0:00:14]}  Qb4 {[%clk 0:02:41]} 21. Ne2 {[%clk 0:00:11]}  Qa3 {[%clk 0:02:41]} 22. Nd4 {[%clk 0:00:11]}  e5 {[%clk 0:02:35]} 23. Bxd5 {[%clk 0:00:09]}  exd4 {[%clk 0:02:33]} 24. g4 {[%clk 0:00:08]}  Qc5 {[%clk 0:02:24]} 25. Be4 {[%clk 0:00:08]}  g6 {[%clk 0:02:20]} 26. h5 {[%clk 0:00:07]}  Qc3 {[%clk 0:02:19]} 27. Qe2 {[%clk 0:00:07]}  d3 {[%clk 0:02:19]} 28. cxd3 {[%clk 0:00:07]}  Qa1+ {[%clk 0:02:18]} 0-1


[Site "https://www.chess.com"]